[Event "93rd German Championship 2022"]
[Site "Magdeburg"]
[Date "2022.08.15"]
[Round "2.4"]
[White "Krastev, Alexander"]
[Black "Richter, Nils"]
[Result "1/2-1/2"]
[ECO "B10"]
[WhiteElo "2435"]
[BlackElo "2359"]
[Annotator "TA"]
[PlyCount "82"]
[EventDate "2022.08.14"]
[EventType "swiss"]
[EventCountry "GER"]
[SourceTitle "playchess.com"]
[Source "ChessBase"]
[SourceQuality "1"]
[TimeControl "40/5400+30:1800+30"]

{[%evp 9,82,-37,-39,-70,-69,-61,-58,-60,-75,-89,-81,-143,-129,-132,-133,-129,-135,-135,-137,-135,-145,-149,-136,-146,-112,-133,-103,-108,-97,-95,-98,-104,-54,-47,-52,-62,-33,-35,-41,-31,-20,-28,-24,-28,0,-6,0,0,0,0,0,-17,-1,-7,0,0,0,0,0,0,0,0,0,0,0,0,0,0,0,0,0,0,0,0,0]} 1. e4 {[%emt 0:00:02]} c6 {[%emt 0:00:06]} 2. Nc3 {[%emt 0:00:15]} d5 {[%emt 0:00:12]} 3. Qf3 {[%emt 0:00:06]} d4 {[%emt 0:01:00]} 4. Bc4 {[%emt 0:00:18]} Nf6 {[%emt 0:00:15][%cal Bg8f6,Bf6d7,Bd7c5,Bc5d3,Bd3c1][%mdl 32]} 5. Nce2 {[%emt 0:00:05]} Nbd7 {[%emt 0:05:53] [#] ...Ne5 is the strong threat.} 6. d3 $146 {[%emt 0:24:38] B11: Caro-Kann: Two Knights Variation.} ({Predecessor:} 6. Bb3 e5 7. d3 Nc5 8. Qg3 Nxb3 9. Qxe5+ Qe7 10. Qxe7+ Bxe7 11. axb3 c5 12. Nf3 Bg4 {1-0 (37) Firouzja,A (2702)-Bluebaum,M (2643) chess24.com INT 2020}) 6... Ne5 {[%emt 0:13:45]} 7. Qf4 {[%emt 0:00:05]} Nxc4 {[%emt 0:00:08]} 8. dxc4 {[%emt 0:00:04] Black is slightly better.} Nd7 {[%emt 0:08:52]} 9. Nf3 {[%emt 0:07:42] Prevents e5.} ({Avoid the trap} 9. Nxd4 $2 e5 10. Nxc6 bxc6 $19) 9... e5 {[%emt 0:00:19]} 10. Qg3 {[%emt 0:00:11] [#]} (10. Qd2 $142) 10... f6 $1 $17 {[%emt 0:03:00]} 11. O-O {[%emt 0:09:02]} Nc5 {[%emt 0:00:56]} 12. Nd2 {[%emt 0:24:40]} d3 {[%emt 0:04:22]} 13. cxd3 {[%emt 0:02:35]} Qxd3 {[%emt 0:00:15]} ({Stronger than} 13... Nxd3 14. Nb1 Be6 15. b3 $15) 14. Nc3 {[%emt 0:08:30]} Qxg3 {[%emt 0:01:18]} 15. hxg3 {[%emt 0:00:06]} Be6 {[%emt 0:00:54]} 16. b3 {[%emt 0:00:37]} Nd3 {[%emt 0:05:37]} 17. Nf3 {[%emt 0:00:04]} Nxc1 {[%emt 0:00:52]} 18. Raxc1 {[%emt 0:00:01]} O-O-O {[%emt 0:00:38]} 19. Rfd1 {[%emt 0:02:05]} Bb4 {[%emt 0:06:42]} 20. Kf1 {[%emt 0:04:38]} Rxd1+ {[%emt 0:09:30]} ({Black should try} 20... Bg4 $17 21. Ne2 h5) 21. Nxd1 $15 {[%emt 0:00:12]} Rd8 {[%emt 0:00:02]} 22. Ne3 {[%emt 0:03:03]} Ba3 {[%emt 0:06:24]} 23. Rc2 {[%emt 0:04:20]} Kc7 {[%emt 0:11:40]} 24. Ke2 {[%emt 0:00:20]} Kb6 {[%emt 0:00:02]} 25. Ne1 {[%emt 0:01:24]} Bc5 {[%emt 0:02:03]} 26. Nd3 {[%emt 0:00:05]} Bd4 {[%emt 0:00:17]} 27. Rc1 {[%emt 0:01:30] The position is equal.} g6 {[%emt 0:00:53]} 28. Rh1 {[%emt 0:01:23]} h5 {[%emt 0:00:29]} 29. f3 {[%emt 0:00:34]} a5 {[%emt 0:01:11]} 30. a4 {[%emt 0:01:49]} Kc7 {[%emt 0:01:21][%cal Ob7b5]} 31. g4 {[%emt 0:02:53]} hxg4 {[%emt 0:06:03]} 32. Nxg4 {[%emt 0:00:21]} b5 {[%emt 0:00:57]} 33. axb5 {[%emt 0:01:55]} cxb5 {[%emt 0:00:14]} 34. Nxf6 {[%emt 0:00:56]} bxc4 {[%emt 0:02:09]} 35. bxc4 {[%emt 0:00:09]} a4 {[%emt 0:00:28] [#] White must now prevent ...a3.} (35... Bxc4 $2 36. Rc1 $18) 36. Nd5+ {[%emt 0:00:57]} Bxd5 {[%emt 0:00:50]} 37. cxd5 {[%emt 0:00:01]} a3 {[%emt 0:00:31] aiming for ...a2.} 38. Rc1+ {[%emt 0:00:39]} Kd7 {[%emt 0:04:15] Threatens to win with ...a2.} 39. Rc2 {[%emt 0:00:28]} Rb8 {[%emt 0:00:01][%cal Ob8b2]} 40. Kd2 {[%emt 0:01:12]} Rb1 {[%emt 0:05:20]} 41. Ra2 {[%emt 0:09:06]} Rb3 {[%emt 0:05:28] And White is the lucky defender.  Weighted Error Value: White=0.04 (flawless) /Black=0.06 (flawless)} 1/2-1/2

[Event "93rd German Championship 2022"]
[Site "Magdeburg"]
[Date "2022.08.15"]
[Round "2.5"]
[White "Keller, Peter"]
[Black "Becker, Michael"]
[Result "1-0"]
[ECO "C47"]
[WhiteElo "2377"]
[BlackElo "2270"]
[Annotator "TA"]
[PlyCount "34"]
[EventDate "2022.08.14"]
[EventType "swiss"]
[EventCountry "GER"]
[SourceTitle "playchess.com"]
[Source "ChessBase"]
[SourceQuality "1"]
[TimeControl "40/5400+30:1800+30"]

{[%evp 11,21,-14,0,0,-7,0,5,-13,0,0,13,0]} 1. e4 {[%emt 0:00:04]} e5 {[%emt 0:00:03]} 2. Nf3 {[%emt 0:00:07]} Nc6 {[%emt 0:00:09]} 3. Nc3 {[%emt 0:00:06]} Nf6 {[%emt 0:00:06]} 4. d4 {[%emt 0:00:04]} Bb4 {[%emt 0:03:00]} 5. d5 {[%emt 0:18:29]} Ne7 {[%emt 0:00:13]} 6. Nxe5 {[%emt 0:01:01]} d6 {[%emt 0:01:08] The position is equal.} 7. Bb5+ {[%emt 0:13:57] C47: Scotch Four Knights and Four Knights with 4 g3.} Kf8 {[%emt 0:00:10]} 8. Nf3 {[%emt 0:00:18] Hoping for Qe2.} Nxe4 {[%emt 0:01:41]} 9. O-O {[%emt 0:09:14]} Nxc3 {[%emt 0:19:25]} 10. bxc3 {[%emt 0:00:12]} Bxc3 {[%emt 0:00:03]} 11. Rb1 {[%emt 0:04:23][%mdl 32768] [#] Not much happened in this game.  Weighted Error Value: White=0.00 (flawless) /Black=0.07 (flawless) . Loss on time!?} {Predecessor:} b6 $146 12. Nd4 Bd7 13. Bc4 Bxd4 14. Qxd4 f6 15. Bd3 Kf7 16. Qh4 Bf5 17. Bxf5 Nxf5 {1-0 (38) Gaprindashvili,N-Polihroniade,E Vrnjacka Banja 1961} 1-0

[Event "93rd German Championship 2022"]
[Site "Magdeburg"]
[Date "2022.08.15"]
[Round "2.6"]
[White "Arnold, Max"]
[Black "Parvanyan, Ashot"]
[Result "1/2-1/2"]
[ECO "C11"]
[WhiteElo "2350"]
[BlackElo "2428"]
[Annotator "TA"]
[PlyCount "81"]
[EventDate "2022.08.14"]
[EventType "swiss"]
[EventCountry "GER"]
[SourceTitle "playchess.com"]
[Source "ChessBase"]
[SourceQuality "1"]
[TimeControl "40/5400+30:1800+30"]

{[%evp 15,81,17,28,2,12,18,9,7,14,11,64,52,68,50,81,53,79,26,105,111,114,99,110,110,106,60,63,6,7,0,0,-121,-7,-8,27,23,21,19,22,12,7,0,65,41,49,53,50,29,26,10,174,32,32,32,145,0,93,0,0,0,0,0,0,0,0,0,0,0]} 1. e4 {[%emt 0:00:03]} e6 {[%emt 0:00:24]} 2. d4 {[%emt 0:00:10]} d5 {[%emt 0:00:22]} 3. Nc3 {[%emt 0:00:17]} Nf6 {[%emt 0:03:00]} 4. Bg5 {[%emt 0:00:17]} dxe4 {[%emt 0:01:10]} 5. Nxe4 {[%emt 0:00:19]} Be7 {[%emt 0:00:04]} 6. Nxf6+ {[%emt 0:00:51]} Bxf6 {[%emt 0:01:33]} 7. Bxf6 {[%emt 0:00:10]} Qxf6 {[%emt 0:00:07]} 8. Nf3 {[%emt 0:00:11]} c5 {[%emt 0:03:26]} 9. Qd3 {[%emt 0:06:17] C13: French: Classical System: 4 Bg5 Be7, Alekhine-Chatard Attack.} cxd4 {[%emt 0:14:33]} 10. Qxd4 {[%emt 0:05:43]} Qxd4 {[%emt 0:00:26]} 11. Nxd4 {[%emt 0:00:09] [#]} Ke7 $146 {[%emt 0:09:37]} ({Predecessor:} 11... b6 12. Nb5 Kd8 13. Be2 Nd7 14. Bf3 Rb8 15. Nxa7 Bb7 16. Nc6+ Bxc6 17. Bxc6 Kc7 {½-½ (60) Torngren,G (2245)-Pijpers,A (2486) Prague 2022}) 12. Be2 {[%emt 0:08:47]} Nd7 {[%emt 0:11:34]} (12... Bd7 $11) 13. O-O-O $14 {[%emt 0:02:15]} Nc5 {[%emt 0:09:45]} 14. Bf3 {[%emt 0:16:10]} e5 {[%emt 0:15:35]} 15. Nb5 {[%emt 0:08:24]} Be6 {[%emt 0:10:07] Against Rd5} 16. Nc7 {[%emt 0:12:04]} (16. Rhe1 $16) 16... Rab8 {[%emt 0:00:17]} (16... Rad8 $11) 17. Nd5+ $16 {[%emt 0:04:00]} Kf8 {[%emt 0:02:39]} 18. Rhe1 {[%emt 0:06:39]} f6 {[%emt 0:00:16]} 19. Re3 {[%emt 0:07:45]} Kf7 {[%emt 0:05:32]} 20. b4 {[%emt 0:00:47]} (20. Nc7 $16) 20... Na6 $1 $14 {[%emt 0:00:58]} 21. Kb2 {[%emt 0:02:35] White is more active.} ({Better is} 21. Ra3 $14) 21... Rhd8 $11 {[%emt 0:01:12]} 22. c4 {[%emt 0:02:48]} Rbc8 {[%emt 0:08:09]} 23. c5 {[%emt 0:04:13]} (23. Kc3 $11) 23... Rd7 {[%emt 0:00:42]} (23... e4 $1 $17 {[%cal Re4f3]} 24. Rxe4 Rxd5 25. Rxe6 Rxd1 26. Rxa6 bxa6 27. Bxd1 a5) 24. a3 {[%emt 0:04:48][%cal Od5b6]} Nc7 {[%emt 0:00:27]} (24... Rcd8 $5 {[%cal Re6d5]} 25. Nc3 Rxd1 26. Nxd1 Nc7 $15) 25. Nxc7 {[%emt 0:01:31]} Rcxc7 {[%emt 0:00:19]} 26. Rxd7+ {[%emt 0:03:18]} Bxd7 {[%emt 0:00:05][%mdl 4096] Endgame KRB-KRB} 27. Kc3 {[%emt 0:01:58]} Ke7 {[%emt 0:01:06]} 28. Bd5 {[%emt 0:01:25]} Bb5 {[%emt 0:00:34]} ({Black should try} 28... b6 $11) 29. f4 {[%emt 0:00:34]} b6 $1 {[%emt 0:00:15]} 30. Bc4 {[%emt 0:00:04]} Bxc4 {[%emt 0:00:25]} 31. Kxc4 $14 {[%emt 0:00:01] KR-KR} Ke6 {[%emt 0:00:31]} 32. g4 {[%emt 0:00:52]} g6 $2 {[%emt 0:00:47] [#]} (32... bxc5 $11 33. bxc5 Re7) 33. a4 {[%emt 0:00:08]} (33. g5 $1 $18) 33... bxc5 {[%emt 0:00:29]} 34. bxc5 {[%emt 0:00:24]} Rb7 {[%emt 0:00:32]} (34... Rd7 $14) 35. c6 {[%emt 0:01:20]} (35. g5 $16) 35... Rb1 {[%emt 0:00:13] [#]} (35... Rb2 $1 $11 {remains equal.}) 36. fxe5 {[%emt 0:00:37]} (36. g5 $1 $16 {[%cal Rg5f6]} fxg5 37. fxe5) 36... fxe5 $11 {[%emt 0:00:09] The position is equal.} 37. Rh3 {[%emt 0:00:28]} Rc1+ {[%emt 0:01:03]} 38. Kb5 {[%emt 0:00:15]} Rb1+ {[%emt 0:00:24]} 39. Kc5 {[%emt 0:00:42]} Rc1+ {[%emt 0:00:07]} 40. Kb5 {[%emt 0:00:35]} Rb1+ {[%emt 0:00:19]} 41. Kc5 {[%emt 0:12:44] Weighted Error Value: White=0.34/Black=0.36} 1/2-1/2

[Event "93rd German Championship 2022"]
[Site "Magdeburg"]
[Date "2022.08.15"]
[Round "2.7"]
[White "Braun, Georg"]
[Black "Schulz, Lukas"]
[Result "0-1"]
[ECO "A05"]
[WhiteElo "2398"]
[BlackElo "2272"]
[Annotator "TA"]
[PlyCount "91"]
[EventDate "2022.08.14"]
[EventType "swiss"]
[EventCountry "GER"]
[SourceTitle "playchess.com"]
[Source "ChessBase"]
[SourceQuality "1"]
[TimeControl "40/5400+30:1800+30"]

{[%evp 21,91,44,79,62,52,16,53,42,50,34,60,37,47,47,57,37,39,37,41,29,35,23,22,12,10,6,6,0,0,0,0,0,0,0,0,0,0,-98,-95,-227,-227,-213,-221,-215,-218,-293,-293,-293,-301,-292,-301,-278,-278,-278,-278,-320,-328,-408,-384,-516,-531,-496,-468,-1864,-1907,-29975,-29975,-29972,-29972,-29978,-29979,-29994]} 1. Nf3 {[%emt 0:00:12]} Nf6 {[%emt 0:00:10]} 2. b3 {[%emt 0:00:22]} g6 {[%emt 0:00:31]} 3. Bb2 {[%emt 0:00:11]} Bg7 {[%emt 0:00:09]} 4. g3 {[%emt 0:00:15]} O-O {[%emt 0:00:14]} 5. Bg2 {[%emt 0:00:13]} d6 {[%emt 0:00:47]} 6. d4 {[%emt 0:00:13]} Nbd7 {[%emt 0:00:58]} 7. O-O {[%emt 0:00:18]} Re8 {[%emt 0:02:08]} 8. c4 {[%emt 0:00:48]} e5 {[%emt 0:03:30]} 9. dxe5 {[%emt 0:00:11]} dxe5 {[%emt 0:00:08]} 10. Nxe5 {[%emt 0:25:08]} Nxe5 {[%emt 0:01:17]} 11. Qxd8 {[%emt 0:00:22]} Rxd8 {[%emt 0:00:05]} 12. Bxe5 {[%emt 0:00:09] E60: King's Indian: Unusual lines and Fianchetto Variation without Nc3.} Re8 {[%emt 0:00:09]} 13. Bd4 {[%emt 0:16:29]} ({Of course not} 13. Bxc7 Ng4 14. Na3 Bxa1 15. Rxa1 Rxe2 $11) 13... c5 {[%emt 0:18:22]} 14. Bc3 {[%emt 0:00:27] White is slightly better.} Rxe2 {[%emt 0:00:08] [#]} 15. Na3 $146 {[%emt 0:03:53]} ({Predecessor:} 15. Nd2 Rb8 16. Rae1 Rxe1 17. Rxe1 Nd7 18. Re8+ Nf8 19. Ne4 Bxc3 20. Nxc3 Kg7 21. Nd5 {1-0 (41) Sarok,P (2194)-Sandor,J (2126) Hungary 2010}) 15... Re7 {[%emt 0:24:08]} 16. Nb5 {[%emt 0:04:33]} Ne8 {[%emt 0:20:05]} 17. Rfe1 {[%emt 0:09:15]} Be6 $1 {[%emt 0:00:29]} 18. Bxg7 {[%emt 0:04:01]} Kxg7 {[%emt 0:00:19]} 19. Rad1 {[%emt 0:04:06]} Nf6 {[%emt 0:05:57]} 20. Re5 {[%emt 0:08:03]} a6 {[%emt 0:03:32]} 21. Nc3 {[%emt 0:00:07]} Rc7 {[%emt 0:00:53]} 22. Re3 {[%emt 0:03:55]} Rb8 {[%emt 0:02:44]} 23. a4 {[%emt 0:01:24]} b6 {[%emt 0:04:38]} 24. Rd6 {[%emt 0:01:14]} Rd7 $36 {[%emt 0:01:44][%mdl 2048] Black has some pressure.} 25. Rxd7 {[%emt 0:03:18]} Bxd7 {[%emt 0:02:42]} 26. Rd3 {[%emt 0:02:38]} Re8 {[%emt 0:00:45]} 27. Kf1 {[%emt 0:00:41] Inhibits Re1+.} Bf5 {[%emt 0:01:15][%cal Bd7f5,Bf5c2,Bc2b3][%mdl 32]} 28. Rd6 {[%emt 0:01:43]} Bc2 {[%emt 0:01:26]} 29. Bf3 {[%emt 0:03:37]} (29. Bb7 $1 $11) 29... Bxb3 $17 {[%emt 0:00:47]} 30. Be2 {[%emt 0:00:30] Loses the game.} (30. Rxb6 $17 Bxc4+ 31. Be2 Bxe2+ 32. Nxe2) 30... Re6 $19 {[%emt 0:01:57]} 31. Rd8 {[%emt 0:03:38]} Ne4 {[%emt 0:00:12]} 32. Nxe4 {[%emt 0:00:15]} Rxe4 {[%emt 0:00:05][%mdl 4096] Endgame KRB-KRB} 33. f3 {[%emt 0:00:25]} Rd4 {[%emt 0:00:20]} 34. Rb8 {[%emt 0:00:52]} Bxc4 {[%emt 0:00:05]} 35. Bxc4 {[%emt 0:00:27]} Rxc4 {[%emt 0:00:06]} 36. Rxb6 {[%emt 0:00:07]} Rxa4 {[%emt 0:00:04] KR-KR} 37. Rc6 {[%emt 0:00:07]} c4 {[%emt 0:02:19][%cal Bc5c4,Bc4c3,Bc3c2][%mdl 32]} 38. h4 {[%emt 0:01:34]} a5 {[%emt 0:02:10][%cal Ba6a5,Ba5a4,Ba4a3,Ba3a2][%mdl 32]} 39. g4 {[%emt 0:01:45]} Rb4 {[%emt 0:01:00]} 40. Ra6 {[%emt 0:00:51]} a4 {[%emt 0:00:17]} 41. Ke2 {[%emt 0:30:36]} c3 {[%emt 0:05:31]} 42. Rc6 {[%emt 0:00:00]} (42. Kd3 $142 Rc4 43. Kc2 (43. Kxc4 $2 {is the wrong capture.} c2 $19)) 42... a3 {[%emt 0:02:02] [#] ( -> ...a2)} 43. Ra6 {[%emt 0:00:00]} Rb2+ {[%emt 0:01:16] Black mates.} 44. Ke3 {[%emt 0:00:00]} a2 {[%emt 0:00:46]} 45. g5 {[%emt 0:00:00]} c2 46. Kd4 {Weighted Error Value: White=0.55/Black=0.02 (flawless)} 0-1

[Event "93rd German Championship 2022"]
[Site "Magdeburg"]
[Date "2022.08.15"]
[Round "2.8"]
[White "Boder, Jan"]
[Black "Roseneck, Jonas"]
[Result "0-1"]
[ECO "A01"]
[WhiteElo "2315"]
[BlackElo "2384"]
[Annotator "TA"]
[PlyCount "152"]
[EventDate "2022.08.14"]
[EventType "swiss"]
[EventCountry "GER"]
[SourceTitle "playchess.com"]
[Source "ChessBase"]
[SourceQuality "1"]
[TimeControl "40/5400+30:1800+30"]

{[%evp 9,152,0,4,7,19,7,26,3,0,0,38,31,46,14,8,2,11,13,7,11,13,10,17,17,66,75,70,54,51,35,37,31,45,50,45,44,61,65,48,30,20,25,14,18,0,0,0,0,13,0,18,11,76,76,98,86,81,45,30,0,41,0,0,0,0,-91,-61,-68,-7,-9,0,-9,-8,-6,-1,-5,0,-7,-4,-42,-32,-40,-38,-33,-47,-52,-21,-25,-33,-42,-45,-45,-21,-20,-12,-54,-18,-13,0,0,0,0,0,0,0,-115,0,-133,-108,-179,-133,-383,-375,-368,-358,-354,-339,-895,-868,-733,-641,-992,-979,-6406,-5569,-5265,-1859,-29974,-29976,-29978,-29974,-29979,-29980,-29980,-29981,-29981,-29982,-29983,-29984,-29984,-29985,-29985,-29986,-29979,-29973]} 1. b3 {[%emt 0:00:11]} e5 {[%emt 0:00:01][%cal Be7e5,Be5e4][%mdl 32]} 2. Bb2 {[%emt 0:00:07]} Nc6 {[%emt 0:00:03]} 3. e3 {[%emt 0:00:06]} Nf6 {[%emt 0:00:03]} 4. Nf3 {[%emt 0:00:07]} e4 {[%emt 0:00:33]} 5. Nd4 {[%emt 0:00:09]} Bc5 {[%emt 0:00:08]} 6. d3 {[%emt 0:00:14] A01: Nimzowitsch-Larsen Opening.} Bxd4 {[%emt 0:16:10]} 7. exd4 {[%emt 0:00:33]} d5 {[%emt 0:03:00] [#]} 8. Nd2 $146 {[%emt 0:06:45] White has an edge.} ({Predecessor:} 8. dxe4 Nxe4 9. Bd3 O-O 10. O-O Bf5 11. Nd2 Re8 12. Re1 Qh4 13. Nxe4 Bxe4 14. c4 Nb4 15. Bxe4 dxe4 16. Bc3 Nd3 17. Re3 Qxf2+ {0-1 (17) Deviprasath,S (1578)-Khachiyan,M (2481) Chess.com INT 2020}) 8... exd3 {[%emt 0:02:47]} 9. Bxd3 {[%emt 0:00:31]} Bg4 {[%emt 0:00:04]} 10. f3 {[%emt 0:03:12]} Be6 {[%emt 0:00:43]} 11. a3 {[%emt 0:05:38]} O-O {[%emt 0:02:17]} 12. O-O {[%emt 0:00:40]} Ne7 {[%emt 0:01:10]} 13. Re1 {[%emt 0:03:35]} Bf5 {[%emt 0:04:22]} 14. Nf1 {[%emt 0:02:41]} Bxd3 {[%emt 0:02:23]} 15. Qxd3 {[%emt 0:00:07]} Ng6 {[%emt 0:05:43]} 16. Bc1 {[%emt 0:04:21]} Nh5 {[%emt 0:15:11]} (16... Qd7 $11) 17. Qf5 $1 $14 {[%emt 0:11:26]} Qh4 {[%emt 0:07:11][%csl LRd4,LRe1]} 18. Be3 {[%emt 0:02:36]} Nf6 {[%emt 0:03:45]} 19. c4 {[%emt 0:27:15]} h6 {[%emt 0:05:33]} 20. Rac1 {[%emt 0:02:11]} dxc4 {[%emt 0:09:31]} 21. bxc4 {[%emt 0:00:46]} Rfe8 {[%emt 0:01:07]} 22. Qc5 {[%emt 0:05:18]} c6 {[%emt 0:04:27]} 23. Rb1 {[%emt 0:03:22]} Nd7 {[%emt 0:01:33]} 24. Qf5 {[%emt 0:02:00]} Nb6 {[%emt 0:00:09]} 25. g3 {[%emt 0:05:04]} Qe7 {[%emt 0:05:48]} 26. Qd3 {[%emt 0:00:38]} Qd7 {[%emt 0:00:56] White must now prevent ...Ne5.} 27. Nd2 {[%emt 0:00:20][%cal Bf1d2,Bd2e4,Be4c5][%mdl 32]} Rad8 {[%emt 0:01:42]} 28. Qb3 {[%emt 0:01:17]} Qf5 {[%emt 0:02:06]} 29. Bf2 {[%emt 0:06:23]} Rxe1+ {[%emt 0:02:30]} 30. Rxe1 {[%emt 0:00:10]} Qd7 {[%emt 0:01:17]} (30... Nf8 $11) 31. Ne4 $16 {[%emt 0:01:23]} Re8 {[%emt 0:00:43]} 32. Rb1 {[%emt 0:00:07]} Re7 {[%emt 0:01:31]} 33. Nc5 {[%emt 0:02:25]} Qf5 {[%emt 0:00:15][%cal Ob6c4]} 34. Ne4 {[%emt 0:01:23]} Nf8 {[%emt 0:00:49]} 35. Nd6 {[%emt 0:01:00]} Qg6 {[%emt 0:01:09]} 36. c5 {[%emt 0:00:05]} Nd5 {[%emt 0:00:42]} 37. Re1 {[%emt 0:03:02] [#]} (37. Nxb7 $11 {remains equal.} Ne6 38. Na5) 37... Rxe1+ $1 $17 {[%emt 0:00:16]} 38. Bxe1 {[%emt 0:00:01]} Ne6 {[%emt 0:00:51]} (38... b5 $15) 39. Bf2 $11 {[%emt 0:01:56]} (39. Qxb7 {seems wilder.} Nxd4 40. Qc8+ Kh7 41. Qg4) 39... b5 {[%emt 0:00:26]} 40. cxb6 {[%emt 0:00:26]} axb6 {[%emt 0:00:20]} 41. Nc4 $1 {[%emt 0:03:30]} Qf6 {[%emt 0:18:34]} 42. Ne5 {[%emt 0:08:09]} Nd8 {[%emt 0:05:01]} 43. Qd3 {[%emt 0:08:09]} Qd6 {[%emt 0:01:13]} 44. Be1 {[%emt 0:01:36]} f6 {[%emt 0:00:44]} 45. Nc4 {[%emt 0:01:09]} Qe6 {[%emt 0:00:36]} 46. Bd2 {[%emt 0:00:04]} b5 {[%emt 0:00:24]} 47. Na5 {[%emt 0:00:46]} Nf7 {[%emt 0:00:55]} 48. Qe4 {[%emt 0:00:35]} Qd7 {[%emt 0:01:50]} 49. Nb3 {[%emt 0:01:36]} Nd6 {[%emt 0:00:13]} 50. Qe2 {[%emt 0:00:57]} Nc4 {[%emt 0:01:51]} (50... Nb7 {is interesting.} 51. Qe4 Kf7 52. Qh7 Qh3) 51. Nc5 {[%emt 0:00:07]} Qe7 {[%emt 0:01:37]} 52. Qd3 {[%emt 0:02:00]} Ncb6 {[%emt 0:01:44] Pair of Knights!} 53. Kf2 {[%emt 0:00:29]} Na4 {[%emt 0:00:33]} 54. Nxa4 {[%emt 0:02:22]} bxa4 {[%emt 0:00:01][%mdl 4096] Endgame KQB-KQN} 55. Qa6 {[%emt 0:00:26]} Qxa3 {[%emt 0:01:41]} 56. Qxc6 {[%emt 0:00:09]} Qa2 {[%emt 0:01:08]} 57. Ke1 {[%emt 0:01:37] [#]} (57. Qe8+ $11 Kh7 58. Qe4+ g6 59. Ke1) 57... Qa1+ {[%emt 0:00:49]} (57... Kf7 $1 $17 {Strongly threatening ...a3.} 58. Qb7+ Kg6) 58. Ke2 {[%emt 0:00:55]} (58. Bc1 $1 $11 {was the only way to keep the balance.} Ne7 59. Qc4+ Kh8 60. d5) 58... Qxd4 $17 {[%emt 0:00:01]} 59. Qe8+ {[%emt 0:02:23]} Kh7 {[%emt 0:00:02]} 60. Qe4+ $2 {[%emt 0:00:05] This move loses the game for White.} (60. Qb5 $17) 60... Qxe4+ $19 {[%emt 0:00:03]} 61. fxe4 {[%emt 0:00:03] KB-KN} Ne7 {[%emt 0:01:22]} 62. Kd3 {[%emt 0:00:56]} Nc6 {[%emt 0:00:58] And now ...Ne5+ would win.} 63. Kc4 $2 {[%emt 0:00:47]} (63. Bc1 Ne5+ 64. Kc3) 63... Ne5+ {[%emt 0:00:09]} 64. Kb4 {[%emt 0:00:17]} Nf3 {[%emt 0:00:59][%csl LRd2,LRh2]} 65. Bc3 {[%emt 0:00:06]} Nxh2 {[%emt 0:00:18]} 66. e5 {[%emt 0:00:07]} fxe5 {[%emt 0:00:46]} 67. Bxe5 {[%emt 0:00:04]} g5 {[%emt 0:00:28]} 68. Kxa4 {[%emt 0:00:23]} Kg6 {[%emt 0:00:02] Black mates.} 69. Bd6 {[%emt 0:01:14]} Nf1 {[%emt 0:00:36]} 70. Kb3 {[%emt 0:00:56]} Kf5 {[%emt 0:00:01]} 71. Kc2 {[%emt 0:00:16]} Kg4 {[%emt 0:00:01]} 72. Kd1 {[%emt 0:00:08]} Nxg3 {[%emt 0:00:15]} 73. Ke1 {[%emt 0:00:06]} Kf3 {[%emt 0:00:12]} 74. Be7 {[%emt 0:00:14]} g4 {[%emt 0:00:43]} 75. Bd8 {[%emt 0:00:08]} h5 {[%emt 0:00:07]} 76. Be7 {[%emt 0:00:15]} Kg2 {[%emt 0:00:15] Weighted Error Value: White=0.23 (precise) /Black=0.14 (very precise)} 0-1